bitfinex-derivatives/quotes_ETHF0:USTF0_20240904
["timestamp","ask_amount","ask_price","bid_price","bid_amount"]
[1725412143028,0.42862,2333.4,2333.2,1.00343201]
[1725412143236,3.2078,2333.3,2333.0,0.00642618]
[1725412143434,0.42867,2333.1,2333.0,0.00642618]
[1725412143738,9.2078,2333.3,2333.0,0.00642618]
[1725412143929,0.42867,2333.1,2333.0,0.57478847]
[1725412144131,0.42867,2333.1,2333.0,0.00642618]
[1725412144330,0.42872,2332.9,2332.5,0.6699643]
[1725412144628,3.6365,2333.0,2332.6,0.84257505]
[1725412144835,0.42871,2332.9,2332.7,0.84257505]
[1725412145025,3.2078,2333.0,2332.2,0.6699643]
[1725412145026,3.6365,2333.0,2332.2,0.6699643]
[1725412145227,3.2078,2333.0,2332.3,3.08408186]
[1725412145432,3.64281618,2333.6,2332.6,0.6699643]
[1725412145632,3.21422618,2333.6,2332.7,2.41411756]
[1725412145849,3.21422618,2333.6,2332.8,2.41411756]
[1725412146028,3.21422618,2333.6,2332.9,2.41411756]
[1725412146235,3.21422618,2333.6,2333.0,1.41071666]
[1725412146534,3.21422618,2333.6,2333.2,0.6699643]
[1725412146535,0.00642618,2333.6,2333.2,0.6699643]
[1725412146846,3.2078,2334.7,2333.3,5.48258243]
[1725412147029,3.2078,2334.7,2333.8,3.2078]
[1725412147234,3.2078,2334.5,2333.9,0.56813513]
[1725412147435,3.2078,2334.5,2334.0,0.56813513]
[1725412147634,3.2078,2334.5,2334.1,0.56813513]
[1725412147837,3.21422618,2334.5,2334.1,0.00642618]
[1725412148039,9.21422618,2334.5,2334.2,0.56785686]
[1725412148241,9.21422618,2334.5,2334.1,0.00642618]
[1725412148242,0.42845,2334.4,2334.1,0.00642618]
[1725412148437,0.42847,2334.2,2334.1,0.00642618]
[1725412148739,3.21422618,2334.5,2334.1,0.00642618]
[1725412148944,3.64265618,2334.5,2334.1,0.00642618]
[1725412149146,0.42846,2334.3,2334.1,0.00642618]
[1725412149345,0.42847,2334.2,2334.1,0.00642618]
[1725412149640,3.21422618,2334.5,2334.1,0.00642618]
[1725412149843,0.42845,2334.4,2334.1,0.00642618]
[1725412150033,0.42846,2334.3,2334.1,0.00642618]
[1725412150238,0.00642618,2334.5,2334.1,0.00642618]
[1725412150743,3.2078,2334.2,2333.3,0.6696507]
[1725412150945,3.2078,2334.0,2333.1,3.2078]
[1725412151248,0.42863,2333.4,2332.6,0.84211444]
[1725412151448,3.2078,2333.7,2332.6,0.84211444]
[1725412151638,0.42864,2333.3,2332.7,0.84211444]
[1725412151832,0.42866,2333.2,2332.7,0.84211444]
[1725412152143,0.00642618,2333.2,2332.8,0.00642618]
[1725412152335,4.29282618,2333.2,2332.8,0.00642618]
[1725412152538,4.2864,2333.1,2332.8,0.00642618]
[1725412152840,0.42871,2332.9,2332.8,0.00642618]
[1725412153040,4.2864,2333.0,2332.8,0.00642618]
[1725412153249,0.42871,2332.9,2332.8,0.00642618]
[1725412153538,10.2864,2332.9,2332.8,0.00642618]
[1725412153946,3.21422618,2333.2,2332.8,0.00642618]
[1725412154138,4.2864,2333.1,2332.8,0.00642618]
[1725412154541,4.2864,2333.0,2332.8,0.00642618]
[1725412154746,0.4287,2333.0,2332.8,0.00642618]
[1725412154950,4.2864,2332.9,2332.8,0.00642618]
[1725412155141,0.42871,2332.9,2332.8,0.00642618]
[1725412155341,1.07188,2332.7,2331.4,4.54898]
[1725412155542,0.42891,2331.9,2331.5,0.84266885]
[1725412155839,3.2078,2332.4,2331.5,0.84266885]
[1725412156045,3.2078,2332.4,2331.3,3.2078]
[1725412156246,3.2078,2332.6,2331.3,3.2078]
[1725412156545,3.21422618,2332.1,2331.6,0.00642618]
[1725412156745,0.42888,2332.0,2331.6,0.00642618]
[1725412156948,0.42889,2332.0,2331.6,0.00642618]
[1725412157142,3.21422618,2332.1,2331.6,0.00642618]
[1725412157337,3.21422618,2332.1,2331.6,0.43536618]
[1725412157649,0.00642618,2332.1,2331.6,3.21422618]
[1725412158043,0.00642618,2332.1,2331.6,0.00642618]
[1725412158643,0.00642618,2332.1,2331.7,0.42892]
[1725412158850,1.07175,2333.0,2331.7,0.42892]
[1725412158851,0.42871,2333.0,2331.8,4.12]
[1725412159039,0.42874,2332.8,2331.9,0.8427051]
[1725412159245,3.2078,2333.1,2332.0,3.2078]
[1725412159646,1.07197,2332.5,2331.9,0.8427051]
[1725412159845,3.2078,2332.3,2331.6,0.00642618]
[1725412160042,0.00642618,2332.8,2332.7,0.42875]
[1725412160245,3.2078,2334.4,2332.7,4.0505051]
[1725412160449,0.42845,2334.3,2333.3,3.2078]
[1725412160852,4.2848,2334.3,2333.3,3.2078]
[1725412161048,3.2078,2334.2,2333.1,0.8427051]
[1725412161253,0.00642618,2333.9,2333.4,0.00642618]
[1725412162856,0.00642618,2333.9,2333.5,0.56788159]
[1725412163152,0.00642618,2333.9,2333.6,0.56788159]
[1725412163354,0.00642618,2333.9,2333.7,0.5678759]
[1725412163659,0.00642618,2333.9,2333.8,4.6179]
[1725412163847,1.00521581,2334.7,2333.8,5.28761042]
[1725412164043,1.00521581,2334.7,2334.0,3.2078]
[1725412164248,1.00521581,2334.7,2334.1,0.84197499]
[1725412164960,0.00642618,2334.6,2334.0,3.2078]
[1725412165253,0.00642618,2334.6,2334.1,0.56775558]
[1725412165456,0.00642618,2334.6,2334.2,0.56775558]
[1725412165657,0.00642618,2334.6,2334.3,0.56775558]
[1725412165853,0.00642618,2334.6,2334.0,3.2078]
[1725412165854,0.00642618,2334.6,2334.4,0.56775558]
[1725412166448,6.00642618,2334.6,2334.1,0.56775558]
[1725412166649,6.00642618,2334.6,2334.2,0.56775558]
[1725412166650,3.21422618,2334.6,2334.2,0.56775558]
[1725412166844,3.21422618,2334.6,2333.7,3.2078]
[1725412167153,0.00642618,2334.6,2333.8,0.56781862]
[1725412167350,0.00642618,2334.6,2333.9,0.56781862]
[1725412167551,0.00642618,2334.6,2334.0,0.56781862]
[1725412167855,0.00642618,2334.6,2333.8,0.56781862]
[1725412168051,0.00642618,2334.6,2333.9,0.56781862]
[1725412168256,0.00642618,2334.6,2334.0,3.77561862]
[1725412168658,0.00642618,2334.6,2334.1,0.56781862]
[1725412168853,0.00642618,2334.6,2334.2,0.56781862]
[1725412169048,0.00642618,2334.6,2334.3,0.56781862]
[1725412169245,0.00642618,2334.6,2334.3,3.2078]
[1725412169453,0.00642618,2334.6,2334.4,0.56781862]
[1725412169754,0.00642618,2334.6,2334.5,0.56781862]
[1725412169960,2.00843831,2335.5,2334.5,0.56781862]
[1725412170159,2.00843831,2335.5,2334.7,3.2078]
[1725412170363,2.00843831,2335.5,2334.7,3.77561862]
[1725412170653,2.00843831,2335.5,2334.7,3.2078]
[1725412170849,3.2078,2335.4,2334.4,0.56752889]
[1725412171052,5.19711618,2335.3,2333.8,3.77532889]
[1725412171348,3.2078,2334.3,2333.7,3.2078]
[1725412171657,3.2078,2334.3,2333.2,0.56752889]
[1725412171851,1.07105,2334.5,2333.2,0.56752889]
[1725412171852,0.42854,2333.9,2333.2,0.56752889]
[1725412172157,0.42854,2333.9,2332.6,4.12]
[1725412172158,0.00642618,2333.8,2333.3,0.00642618]
[1725412172358,0.00642618,2333.8,2333.3,3.21422618]
[1725412172563,0.00642618,2333.8,2333.3,0.00642618]
[1725412173248,3.2078,2333.5,2333.3,0.00642618]
[1725412173450,4.12,2333.4,2332.2,1.40918865]
[1725412173654,3.2078,2332.8,2331.9,3.77532889]
[1725412174155,4.2872,2332.8,2331.9,3.2078]
[1725412174353,8.4072,2332.7,2331.9,3.2078]
[1725412174554,4.12,2332.7,2332.0,3.91388225]
[1725412174755,4.29362618,2332.6,2332.2,0.00642618]
[1725412174961,7.50142618,2332.6,2332.2,0.00642618]
[1725412175261,3.2078,2332.3,2332.2,0.00642618]
[1725412175460,3.63662,2332.3,2332.2,0.00642618]
[1725412175657,13.92462,2332.3,2332.2,6.18e-06]
[1725412175870,13.4958,2332.3,2332.2,6.18e-06]
[1725412176063,13.92462,2332.3,2332.2,6.18e-06]
[1725412176258,0.42888,2332.0,2331.8,1.11230079]
[1725412176450,3.2078,2331.9,2331.8,1.11230079]
[1725412176959,7.4966,2331.9,2331.8,1.11230079]
[1725412177557,0.00642618,2332.6,2331.8,11.40110079]
[1725412177864,0.00642618,2332.6,2331.8,1.11230079]
[1725412178365,3.2078,2332.4,2331.8,1.11230079]
[1725412178562,3.2078,2332.2,2331.8,1.11230079]
[1725412179265,0.00642618,2332.6,2331.8,1.11230079]
[1725412179266,3.2078,2332.3,2331.8,1.11230079]
[1725412179764,4.288,2332.2,2331.8,1.11230079]
[1725412180060,3.2078,2331.9,2331.8,1.11230079]
[1725412180457,7.92549,2331.9,2331.8,1.11230079]
[1725412180763,13.92549,2331.9,2331.8,1.11230079]
[1725412180967,9.63669,2331.9,2331.8,1.11230079]
[1725412181164,3.63669,2331.9,2331.8,1.11230079]
[1725412181366,9.63669,2331.9,2331.8,1.11230079]
[1725412181669,3.63669,2331.9,2331.8,7.9e-07]
[1725412181855,0.42893,2331.7,2331.6,0.81521895]
[1725412182967,0.42892,2331.8,2331.6,0.81521895]
[1725412183169,0.42893,2331.7,2331.6,0.00642618]
[1725412183382,3.2078,2331.9,2331.6,0.00642618]
[1725412184570,0.42893,2331.7,2331.6,0.00642618]
[1725412185167,3.2078,2332.2,2331.6,0.00642618]
[1725412185375,3.63673,2331.7,2331.6,6.18e-06]
[1725412185764,9.63673,2331.7,2331.6,6.18e-06]
[1725412185973,3.63673,2331.7,2331.6,6.18e-06]
[1725412186364,0.42892,2331.8,2331.6,6.18e-06]
[1725412186568,3.2078,2331.7,2331.6,6.18e-06]
[1725412187079,0.42888,2332.0,2331.6,3.20780618]
[1725412187573,1.07201,2332.4,2331.6,6.18e-06]
[1725412187870,3.2078,2331.9,2331.6,6.18e-06]
[1725412188071,0.42893,2331.7,2331.6,6.18e-06]
[1725412188665,6.42893,2331.7,2331.6,6.18e-06]
[1725412188878,0.42912,2330.7,2330.6,4.44169818]
[1725412189072,0.42912,2330.7,2330.2,2.58359572]
[1725412189073,0.42919,2330.3,2330.2,2.58359572]
[1725412189270,0.42919,2330.3,2328.7,5.25154595]
[1725412189271,0.42941,2329.1,2329.0,1.63306195]
[1725412189466,3.63721,2329.1,2329.0,0.38373614]
[1725412189666,0.42947,2328.8,2328.7,1.24478248]
[1725412189877,3.63727,2328.8,2328.7,0.30573248]
[1725412190081,7.93168,2328.8,2328.5,5.33303859]
[1725412190279,3.2078,2328.8,2328.5,0.00644039]
[1725412190673,3.63728,2328.8,2328.5,0.00644039]
[1725412190881,3.2078,2328.8,2328.5,0.00644039]
[1725412191273,4.2944,2328.7,2327.8,1.42114673]
[1725412191575,7.3278,2328.8,2327.8,1.42114673]
[1725412191778,3.2078,2328.1,2327.8,1.42114673]
[1725412191977,3.2078,2328.8,2327.9,4.296]
[1725412192177,3.2078,2328.5,2327.8,1.42114673]
[1725412192383,3.2078,2328.2,2327.7,0.42965]
[1725412192578,3.2078,2328.5,2327.8,0.42964]
[1725412192769,3.2078,2328.5,2327.6,0.00431731]
[1725412192975,3.2078,2328.5,2327.6,0.43399731]
[1725412193172,0.00644039,2329.0,2328.0,4.12]
[1725412193376,1.99282416,2330.0,2328.0,4.12]
[1725412193377,1.99282416,2330.0,2328.9,4.12]
[1725412193672,1.99282416,2330.0,2329.2,3.2078]
[1725412193673,1.78926456,2330.0,2329.2,3.2078]
[1725412194076,1.78926456,2330.0,2328.8,3.2078]
[1725412194375,1.78926456,2330.0,2329.1,3.2078]
[1725412194678,1.78926456,2330.0,2329.2,0.00644039]
[1725412194679,0.00644039,2329.6,2329.2,0.00644039]
[1725412195080,0.00644039,2329.6,2329.2,6.00644039]
[1725412195382,0.00644039,2329.6,2329.2,0.00644039]
[1725412195780,0.00644039,2329.6,2329.2,6.00644039]
[1725412196175,0.00644039,2329.6,2329.2,0.00644039]
[1725412196575,0.00644039,2329.6,2329.2,6.00644039]
[1725412197677,3.2078,2330.1,2329.2,6.00644039]
[1725412197873,3.2078,2330.4,2329.4,3.2078]
[1725412198078,3.2078,2330.4,2329.2,6.00644039]
[1725412198079,0.0404,2331.0,2330.0,0.42923]
[1725412198399,0.0404,2331.0,2330.2,3.2078]
[1725412198589,0.0404,2331.0,2330.3,0.21645904]
[1725412198779,0.00644039,2330.8,2330.4,0.00644039]
[1725412200481,0.00644039,2330.8,2330.4,6.00644039]
[1725412200683,0.00644039,2330.8,2330.4,0.00644039]
[1725412201081,3.2078,2330.7,2330.4,0.00644039]
[1725412202084,0.42915,2330.5,2330.4,0.00644039]
[1725412202477,0.42915,2330.5,2329.4,3.2078]
[1725412202478,0.42926,2330.0,2329.4,3.2078]
[1725412202685,3.2078,2329.5,2328.7,0.4296]
[1725412202987,3.2078,2330.7,2329.4,7.3278]
[1725412203178,3.2078,2330.7,2329.8,3.2078]
[1725412203381,3.2078,2330.7,2329.8,7.3278]
[1725412203589,0.00644039,2330.5,2330.1,3.2078]
[1725412203796,0.00644039,2330.5,2330.0,0.00644039]
[1725412204178,3.2078,2330.4,2330.0,0.00644039]
[1725412204379,0.00644039,2330.5,2330.0,0.00644039]
[1725412204380,3.63703,2330.1,2330.0,0.00644039]
[1725412204687,10.7101,2330.1,2330.0,3.9e-07]
[1725412204984,0.42935,2329.5,2328.2,3.2078]
[1725412205185,1.07318,2329.9,2328.4,0.42953]
[1725412205186,3.2078,2329.2,2328.4,0.42953]
[1725412205384,0.42942,2329.1,2328.2,3.2078]
[1725412205588,3.2078,2329.2,2328.4,0.42954]
[1725412205781,0.42941,2329.1,2328.2,0.42957]
[1725412205983,0.43587039,2329.0,2328.6,0.00431731]
[1725412206189,3.2078,2328.9,2328.6,0.00431731]
[1725412206394,0.42948,2328.7,2328.6,0.00431731]
[1725412206581,4.72387,2328.8,2328.6,0.00431731]
[1725412206783,0.42948,2328.7,2328.6,0.00431731]
[1725412207090,4.72388,2328.7,2328.6,0.00431731]
[1725412207294,10.72388,2328.7,2328.6,0.00431731]
[1725412207494,0.42962,2328.0,2327.7,0.21910324]
[1725412207687,3.2078,2327.9,2327.4,2.21057332]
[1725412208187,4.296,2327.8,2327.4,2.21057332]
[1725412208390,0.4297,2327.5,2327.4,1.20598332]
[1725412208591,4.12,2327.7,2327.2,2.76321665]
[1725412208592,3.2078,2327.6,2327.2,2.76321665]
[1725412208784,3.21424039,2327.6,2327.2,2.76321665]
[1725412209194,0.00644039,2327.6,2327.3,4.2968]
[1725412209384,3.2078,2327.9,2327.5,0.42969]
[1725412209589,4.54948,2328.8,2327.2,5.97101665]
[1725412209590,3.2078,2328.3,2327.2,5.97101665]
[1725412209793,3.2078,2328.3,2327.3,0.4296]
[1725412209987,3.2078,2328.6,2327.5,3.2078]
[1725412210387,0.00644039,2328.3,2327.8,0.00644039]
[1725412210584,3.21424039,2328.3,2327.8,0.00644039]
[1725412210785,3.2078,2328.0,2327.8,0.00644039]
[1725412210988,3.63742,2328.0,2327.8,0.00644039]
[1725412211291,4.296,2327.9,2327.2,2.76321665]
[1725412211496,3.2078,2327.6,2327.2,2.76321665]
[1725412211896,7.5046,2327.6,2327.2,2.76321665]
[1725412212198,3.2078,2327.6,2327.2,2.76321665]
[1725412212798,3.2078,2327.6,2327.3,4.2968]
[1725412212987,3.2078,2327.6,2327.2,2.76321665]
[1725412213187,0.00644039,2328.3,2327.2,2.76321665]
[1725412213188,3.2078,2327.9,2327.3,4.2968]
[1725412213392,0.00644039,2328.3,2327.7,3.2078]
[1725412213696,3.2078,2328.2,2327.2,5.97101665]
[1725412213991,0.00644039,2328.3,2327.2,5.97101665]
[1725412213992,3.2078,2327.8,2327.2,2.76321665]
[1725412214186,3.2078,2327.4,2327.2,2.76321665]
[1725412214386,3.63744,2327.9,2327.2,2.76321665]
[1725412214587,0.42966,2327.8,2327.2,2.76321665]
[1725412214799,0.42967,2327.7,2327.2,2.76321665]
[1725412214992,3.2078,2327.6,2327.2,2.76321665]
[1725412215192,3.2078,2327.9,2327.2,2.76321665]
[1725412215694,0.00644039,2328.3,2327.9,0.42962]
[1725412215989,0.00644039,2328.3,2327.6,3.2078]
[1725412216191,0.00644039,2328.3,2327.6,9.2078]
[1725412216597,0.00644039,2328.3,2327.9,3.2078]
[1725412217100,0.00644039,2328.3,2327.9,9.2078]
[1725412217291,3.2078,2329.0,2327.9,9.2078]
[1725412217292,3.2078,2329.0,2328.2,4.12644039]
[1725412217494,4.12,2330.4,2328.2,4.12644039]
[1725412217495,0.42914,2330.6,2329.2,0.42938]
[1725412217686,0.0404,2331.0,2329.7,3.2078]
[1725412217687,3.2078,2330.8,2329.7,3.2078]
[1725412217893,3.2078,2330.8,2329.8,0.42927]
[1725412218086,3.2078,2330.8,2329.7,3.6374]
[1725412218287,3.2078,2330.8,2329.8,0.4296]
[1725412218495,0.00644039,2330.5,2330.0,0.00644039]
[1725412218901,0.00644039,2330.5,2330.0,3.21424039]
[1725412219197,0.0404,2331.0,2330.3,3.2078]
[1725412219395,0.0404,2331.0,2330.1,4.12]
[1725412219396,3.2078,2332.4,2330.7,3.2078]
[1725412219592,3.2078,2332.4,2331.1,3.2078]
[1725412219991,3.2078,2332.1,2331.1,3.2078]
[1725412220187,0.00644039,2332.0,2331.5,0.00644039]
[1725412220401,3.2078,2331.6,2331.5,0.00644039]
[1725412220999,3.2078,2331.9,2331.5,4.29524039]
[1725412221205,0.00644039,2332.0,2331.5,0.00644039]
[1725412222290,0.00644039,2332.0,2331.9,3.2078]
[1725412222495,3.2078,2333.7,2332.1,0.42885]
[1725412222691,3.2078,2333.7,2331.9,7.3278]
[1725412222692,3.2078,2333.7,2332.4,3.2078]
[1725412223195,3.2078,2333.7,2332.4,3.63659]
[1725412223400,0.00644039,2333.3,2332.8,0.00644039]
[1725412223596,0.42877,2332.6,2331.5,3.2078]
[1725412223802,3.2078,2332.3,2331.2,7.3278]
[1725412223999,3.2078,2332.3,2331.2,3.2078]
[1725412224600,0.00644039,2332.0,2331.5,0.00644039]
[1725412224805,3.21424039,2332.0,2331.5,0.00644039]
[1725412225702,0.00644039,2332.0,2331.5,0.00644039]
[1725412226409,4.12,2333.1,2331.6,3.2078]
[1725412226609,0.42871,2332.9,2331.8,0.4289]
[1725412226903,3.2078,2333.0,2331.9,3.2078]
[1725412227498,3.2078,2333.3,2332.4,3.2078]
[1725412227706,2.2255,2333.9,2332.8,3.2078]
[1725412227707,3.2078,2333.6,2332.8,3.2078]
[1725412227905,3.2078,2333.6,2332.6,0.00644039]
[1725412227906,0.42861,2333.5,2332.6,0.00644039]
[1725412228101,3.2078,2333.6,2332.6,0.00644039]
[1725412228605,3.2078,2332.9,2332.6,0.00644039]
[1725412228803,0.00644039,2333.0,2332.6,0.00644039]
[1725412229401,0.00644039,2333.0,2332.9,0.42871]
[1725412229797,0.00644039,2333.0,2332.6,0.00644039]
[1725412230000,0.00644039,2333.0,2332.8,0.42872]
[1725412230205,0.00644039,2333.0,2332.6,0.00644039]
[1725412230709,0.00644039,2333.0,2332.8,3.2078]
[1725412231005,0.00644039,2333.0,2332.6,0.00644039]
[1725412231597,0.00644039,2333.0,2332.6,4.29284039]
[1725412231801,0.00644039,2333.0,2332.6,0.00644039]
[1725412232198,0.00644039,2333.0,2332.8,3.2078]
[1725412233014,0.00644039,2333.0,2332.9,4.2864]
[1725412233312,0.42856,2333.8,2332.9,4.2864]
[1725412233612,3.2078,2334.0,2332.8,3.2078]
[1725412233806,0.42859,2333.6,2332.8,3.2078]
[1725412234010,4.12,2333.9,2332.8,3.2078]
[1725412234202,0.00644039,2333.4,2332.8,3.2078]
[1725412235311,0.00644039,2333.4,2333.1,3.2078]
[1725412236102,0.00644039,2333.4,2332.8,3.2078]
[1725412236302,0.00644039,2333.4,2332.8,3.63652]
[1725412236500,0.00644039,2333.4,2333.1,3.2078]
[1725412236699,0.00644039,2333.4,2333.1,7.3278]
[1725412236903,5.18865146,2334.7,2333.1,13.3278]
[1725412236904,3.2078,2334.7,2333.1,13.3278]
[1725412237102,3.2078,2334.7,2333.6,3.2078]
[1725412237310,1.07109,2334.4,2333.6,3.2078]
[1725412237511,3.2078,2334.2,2333.6,3.2078]
[1725412237818,0.00424671,2334.1,2333.7,0.00642632]
[1725412238817,0.42852,2334.0,2333.7,0.00642632]
[1725412239013,0.42855,2333.8,2333.7,0.00642632]
[1725412239317,0.42853,2333.9,2333.7,0.00642632]
[1725412239510,0.42855,2333.8,2333.7,0.00642632]
[1725412239816,3.2078,2333.8,2332.3,3.2078]
[1725412240007,3.2078,2333.3,2332.3,3.2078]
[1725412240205,3.2078,2333.1,2332.3,3.2078]
[1725412240400,3.2078,2333.4,2332.3,3.2078]
[1725412240605,4.12,2334.3,2332.9,3.6365]
[1725412240606,0.00642632,2333.1,2332.9,3.6365]
[1725412240811,0.00642632,2333.1,2332.9,3.2078]
[1725412241012,0.00642632,2333.1,2333.0,4.2864]
[1725412241509,0.42846,2334.3,2333.2,0.42864]
[1725412241709,3.2078,2334.5,2333.3,3.2078]
[1725412241914,0.42846,2334.3,2333.3,3.2078]
[1725412242110,3.2078,2334.5,2333.3,3.2078]
[1725412242409,0.00424671,2334.1,2333.3,3.63643]
[1725412242611,0.00424671,2334.1,2333.3,3.2078]
[1725412243012,0.00424671,2334.1,2333.6,3.2078]
[1725412244317,0.00424671,2334.1,2333.6,9.2078]
[1725412244519,3.2078,2335.0,2334.0,7.3278]
[1725412244710,1.07064,2335.4,2334.2,3.2078]
[1725412244906,0.42837,2334.8,2334.2,3.2078]
[1725412245114,0.42831,2335.1,2334.2,3.2078]
[1725412245312,3.2078,2334.9,2334.2,3.2078]
[1725412245508,3.2078,2334.9,2334.3,0.00642632]
[1725412245710,0.42841,2334.6,2334.3,0.00642632]
[1725412246111,3.2078,2334.9,2334.3,0.00642632]
[1725412246412,0.42835,2334.9,2334.3,0.00642632]
[1725412246721,3.2078,2335.3,2334.3,0.00642632]
[1725412246917,3.2078,2335.0,2334.3,0.00642632]
[1725412247114,0.42843,2334.5,2334.3,0.00642632]
[1725412247629,0.42843,2334.4,2334.3,0.00642632]
[1725412247816,3.2078,2335.0,2334.3,0.00642632]
[1725412247817,4.27864,2335.0,2334.3,0.00642632]
[1725412248022,3.2078,2335.4,2334.3,0.00642632]
[1725412248226,1.07069,2335.3,2334.3,0.00642632]
[1725412248518,0.42837,2334.8,2334.3,3.21422632]
[1725412248719,0.4284,2334.6,2334.3,3.21422632]
[1725412248920,4.27857,2335.1,2334.3,0.00642632]
[1725412248921,0.42832,2335.1,2334.3,0.00642632]
[1725412249125,3.2078,2335.4,2334.4,0.42842]
[1725412249326,0.42828,2335.3,2334.5,3.2078]
[1725412249521,0.42824,2335.5,2334.9,3.2078]
[1725412249713,3.2078,2336.1,2335.0,0.42832]
[1725412249919,1.07037,2336.0,2334.9,3.2078]
[1725412250120,3.2078,2335.0,2334.3,0.00642632]
[1725412250332,4.12,2335.3,2334.3,0.00642632]
[1725412250333,0.42843,2334.4,2334.3,0.00642632]
[1725412250527,4.27872,2334.8,2334.3,0.00642632]
[1725412250528,3.63618,2334.8,2334.3,0.00642632]
[1725412250823,3.2078,2334.8,2334.3,0.00642632]
[1725412251823,0.42841,2334.6,2334.3,0.00642632]
[1725412252028,0.42843,2334.5,2334.3,0.00642632]
[1725412252228,0.42842,2334.5,2334.3,0.00642632]
[1725412252440,3.2078,2334.8,2334.3,0.00642632]
[1725412252733,0.4284,2334.6,2334.3,0.00642632]
[1725412252939,0.42832,2335.1,2334.3,0.43486632]
[1725412253130,3.2078,2335.2,2334.3,0.00642632]
[1725412253324,3.2078,2335.2,2334.4,0.42843]
[1725412253527,3.2078,2335.2,2334.4,3.2078]
[1725412253731,3.2078,2335.2,2334.3,0.00642632]
[1725412254121,1.07077,2335.1,2334.3,0.00642632]
[1725412254443,1.07033,2336.1,2334.5,4.12]
[1725412254642,3.2078,2335.8,2334.7,3.2078]
[1725412254929,3.2078,2335.8,2334.4,3.6366]
[1725412254930,0.42832,2335.1,2334.4,3.6366]
[1725412255136,0.4283,2335.2,2334.4,3.2078]
[1725412255339,3.2078,2335.2,2334.4,3.2078]
[1725412255630,4.27854,2335.2,2334.3,0.00642632]
[1725412255835,0.42831,2335.1,2334.3,0.00642632]
[1725412256036,3.2078,2335.2,2334.3,0.00642632]
[1725412256236,0.42835,2334.9,2334.3,0.00642632]
[1725412256538,3.2078,2335.2,2334.3,3.21422632]
[1725412256738,0.42832,2335.1,2334.3,0.43487632]
[1725412256941,3.2078,2335.2,2334.3,0.00642632]
[1725412257233,3.2078,2335.2,2334.6,0.42839]
[1725412257436,3.2078,2335.2,2334.5,0.42841]
[1725412257828,3.2078,2335.2,2334.4,3.2078]
[1725412257829,3.6361,2335.2,2334.4,3.2078]
[1725412258235,3.6361,2335.2,2334.4,3.63623]
[1725412258537,3.2078,2335.2,2334.4,3.2078]
[1725412259040,3.6361,2335.2,2334.4,3.2078]
[1725412259240,3.63609,2335.2,2334.4,3.63623]
[1725412259533,0.42828,2335.3,2334.4,3.63622]
[1725412259734,3.2078,2335.4,2334.4,3.2078]
[1725412260336,3.63613,2335.0,2334.4,3.2078]
[1725412260535,3.2078,2335.0,2334.3,0.00642632]
[1725412260734,3.63613,2335.0,2334.3,0.00642632]
[1725412261036,3.2078,2335.0,2334.3,0.00642632]
[1725412261241,3.2078,2335.5,2334.5,3.2078]
[1725412261536,3.2078,2335.4,2334.3,0.00642632]
[1725412261924,0.4283,2335.2,2334.4,0.42843]
[1725412262129,3.2078,2335.4,2334.5,3.2078]
[1725412262525,1.07068,2335.3,2334.5,3.2078]
[1725412262738,0.42835,2334.9,2334.5,3.2078]
[1725412262927,7.3278,2335.4,2334.3,0.00642632]
[1725412263232,3.2078,2335.0,2334.3,0.00642632]
[1725412263441,0.42843,2334.4,2334.3,0.00642632]
[1725412263638,0.42849,2334.2,2333.6,0.56767543]
[1725412263829,0.42849,2334.2,2333.2,0.42866]
[1725412264031,3.63624,2334.4,2333.4,0.42861]
[1725412264235,3.2078,2334.7,2333.6,3.2078]
[1725412264537,0.00642632,2334.4,2334.3,3.2078]
[1725412264733,0.00642632,2334.4,2334.3,3.63624]
[1725412264930,3.2078,2335.8,2334.3,9.99174259]
[1725412265138,3.2078,2336.1,2334.8,3.2078]
[1725412265437,3.2078,2336.1,2335.1,7.3278]
[1725412265637,3.2078,2336.5,2335.1,4.12]
[1725412265830,3.2078,2336.5,2335.4,4.12]
[1725412266031,3.2078,2336.2,2335.6,0.00642632]
[1725412266233,3.2078,2336.5,2335.6,3.21422632]
[1725412266436,0.42807,2336.4,2335.6,3.21422632]
[1725412266644,3.2078,2336.5,2335.6,3.21422632]
[1725412266850,3.2078,2336.2,2335.6,3.21422632]
[1725412267139,3.2078,2335.9,2335.6,0.00642632]
[1725412267536,0.4282,2335.7,2335.6,0.00642632]
[1725412267940,10.7098,2335.7,2335.6,0.00642632]
[1725412268138,10.7098,2335.7,2334.7,0.56747274]
[1725412268139,10.2816,2335.7,2334.7,0.56747274]
[1725412268333,3.2078,2335.3,2334.7,0.56761126]
[1725412268729,3.2078,2335.0,2334.6,0.66923077]
[1725412268931,3.2078,2334.7,2334.6,0.66923077]
[1725412269136,3.2078,2335.0,2334.6,0.66923077]
[1725412269443,3.63618,2334.7,2334.6,0.66923077]
[1725412269639,0.42838,2334.7,2334.6,0.66923077]
[1725412269839,0.00642632,2334.9,2334.6,0.66923077]
[1725412270235,3.2078,2334.7,2334.6,0.66923077]
[1725412270541,3.63618,2334.7,2334.6,0.66923077]
[1725412270744,9.63618,2334.7,2334.6,0.66923077]
[1725412270934,3.2078,2334.7,2334.6,0.66923077]
[1725412271136,3.2078,2334.7,2333.6,0.56761126]
[1725412271137,9.2078,2334.7,2333.6,0.56761126]
[1725412271335,0.42847,2334.3,2333.7,0.56761126]
[1725412271536,3.2078,2334.4,2333.5,3.2078]
[1725412271732,0.42846,2334.3,2333.2,0.56762737]
[1725412271940,0.42846,2334.3,2333.1,3.2078]
[1725412271941,3.2078,2333.7,2333.1,3.77542737]
[1725412272149,0.00642632,2333.6,2333.2,0.00642632]
[1725412273647,0.00642632,2333.6,2333.2,0.43506632]
[1725412273846,3.2078,2334.8,2333.4,3.2078]
[1725412274037,3.63618,2334.8,2333.7,0.42855]
[1725412274238,4.12,2335.6,2334.2,0.42845]
[1725412274239,3.2078,2335.1,2334.2,0.42845]
[1725412274443,3.2078,2335.1,2334.0,3.2078]
[1725412274845,0.00642632,2334.8,2334.3,0.00642632]
[1725412275140,0.42851,2334.0,2333.9,0.5675337]
[1725412275546,13.92111,2334.0,2333.9,0.5675337]
[1725412275748,7.92111,2334.0,2333.9,0.5675337]
[1725412276145,13.4926,2334.0,2333.0,3.2078]